bitfinex/quotes_SOLUSD_20240909
["timestamp","ask_amount","ask_price","bid_price","bid_amount"]
[1725850949785,45.0,129.48,129.41,6.1891]
[1725850950681,6.1776,129.5,129.41,6.1891]
[1725850950860,29.42656975,129.51,129.44,22.4083]
[1725850951057,29.42656975,129.51,129.45,9.68897337]
[1725850952157,29.42656975,129.51,129.44,22.4083]
[1725850952478,45.0,129.5,129.44,22.4083]
[1725850953670,29.42656975,129.51,129.44,22.4083]
[1725850954059,29.42656975,129.51,129.44,46.51794761]
[1725850956357,29.42656975,129.51,129.45,16.2253]
[1725850958983,16.16870522,129.54,129.45,16.2253]
[1725850959159,45.0,129.53,129.45,16.2253]
[1725850962189,15.31391009,129.52,129.45,16.2253]
[1725850962364,45.0,129.51,129.45,16.2253]
[1725850964786,15.31391009,129.52,129.47,16.5982]
[1725850965363,15.31391009,129.52,129.43,1.54856889]
[1725850965364,15.31391009,129.52,129.49,16.6124]
[1725850965686,28.41336485,129.6,129.5,30.39434761]
[1725850965991,28.41336485,129.6,129.51,16.364]
[1725850967063,45.0,129.59,129.51,16.364]
[1725850967291,28.41336485,129.6,129.52,6.1309]
[1725850968269,6.1737,129.58,129.52,6.1309]
[1725850968593,60.45525094,129.57,129.52,6.1309]
[1725850969393,66.62965094,129.57,129.51,16.364]
[1725850970472,60.45525094,129.57,129.51,16.364]
[1725850972304,6.1748,129.56,129.51,16.364]
[1725850972602,45.0,129.55,129.51,16.364]
[1725850980512,21.62955094,129.57,129.51,16.364]
[1725850981801,45.0,129.56,129.51,16.364]
[1725850987317,51.1748,129.56,129.51,16.364]
[1725850990028,6.1752,129.55,129.51,16.364]
[1725850990313,45.0,129.54,129.51,16.364]
[1725850993429,45.0,129.54,129.49,6.1309]
[1725850994116,51.1758,129.54,129.49,6.1309]
[1725850994959,6.1763,129.53,129.48,15.0016]
[1725850995156,45.0,129.52,129.48,15.0016]
[1725850995342,51.1768,129.52,129.46,6.5985]
[1725850995663,6.1776,129.5,129.46,6.5985]
[1725850995814,6.1776,129.5,129.45,16.5003]
[1725850995815,45.0,129.49,129.45,16.5003]
[1725850996316,45.0,129.5,129.45,16.5003]
[1725850997835,51.1776,129.5,129.45,16.5003]
[1725850998523,45.0,129.5,129.45,16.5003]
[1725851000743,6.1781,129.49,129.45,16.5003]
[1725851001042,45.0,129.48,129.43,6.0629]
[1725851001242,6.1791,129.47,129.43,6.0629]
[1725851001445,45.0,129.46,129.42,15.9252]
[1725851002025,51.1796,129.46,129.42,15.9252]
[1725851003645,51.1796,129.46,129.4,6.6345]
[1725851004235,6.1801,129.45,129.39,15.9252]
[1725851004540,50.0,129.48,129.39,15.9252]
[1725851004541,45.0,129.44,129.39,15.9252]
[1725851005339,51.1804,129.44,129.39,15.9252]
[1725851005645,45.0,129.44,129.39,15.9252]
[1725851006350,51.1804,129.44,129.39,15.9252]
[1725851008456,51.1804,129.44,129.37,6.6345]
[1725851009023,45.0,129.44,129.37,6.6345]
[1725851009225,45.0,129.45,129.37,6.6345]
[1725851009644,51.1801,129.45,129.37,6.6345]
[1725851011938,45.0,129.45,129.37,6.6345]
[1725851012147,51.1796,129.46,129.37,6.6345]
[1725851012958,45.0,129.46,129.37,6.6345]
[1725851013156,6.1791,129.47,129.38,24.66994934]
[1725851014353,6.1791,129.47,129.38,15.0282]
[1725851014652,45.0,129.46,129.38,15.0282]
[1725851017052,44.38185752,129.46,129.38,15.0282]
[1725851017444,6.1796,129.46,129.38,15.0282]
[1725851019456,45.0,129.45,129.38,15.0282]
[1725851023659,51.1801,129.45,129.38,15.0282]
[1725851024662,6.1804,129.44,129.38,15.0282]
[1725851024838,45.0,129.43,129.38,15.0282]
[1725851027359,45.0,129.44,129.38,15.0282]
[1725851029164,51.1805,129.44,129.38,15.0282]
[1725851032248,51.1805,129.44,129.34,9.64174934]
[1725851032249,6.1823,129.4,129.34,16.4142]
[1725851032449,45.0,129.39,129.34,16.4142]
[1725851033770,45.0,129.4,129.34,16.4142]
[1725851034241,45.0,129.41,129.34,16.4142]
[1725851037861,51.1819,129.41,129.34,16.4142]
[1725851042352,15.49841942,129.4,129.34,16.4142]
[1725851042565,45.0,129.39,129.34,16.4142]
[1725851049174,45.0,129.39,129.33,6.66]
[1725851049359,6.1833,129.38,129.33,6.66]
[1725851049560,45.0,129.37,129.33,6.66]
[1725851049950,45.0,129.37,129.31,15.9484]
[1725851052871,51.1838,129.37,129.31,15.9484]
[1725851053755,15.99249129,129.36,129.31,15.9484]
[1725851053960,45.0,129.35,129.31,15.9484]
[1725851054271,45.0,129.35,129.3,6.5205]
[1725851054272,67.02554409,129.35,129.3,6.5205]
[1725851054476,67.02554409,129.35,129.28,16.3402]
[1725851055679,6.1853,129.34,129.28,16.3402]
[1725851055975,60.84084409,129.35,129.28,16.3402]
[1725851055976,51.1857,129.33,129.28,16.3402]
[1725851056359,15.41740786,129.32,129.28,16.3402]
[1725851056559,45.0,129.31,129.28,16.3402]
[1725851060179,45.0,129.31,129.25,17.4876677]
[1725851062862,51.1867,129.31,129.25,17.4876677]
[1725851063267,6.1871,129.3,129.25,0.8509677]
[1725851063478,45.0,129.29,129.25,0.8509677]
[1725851067893,67.03389823,129.29,129.25,0.8509677]
[1725851068891,6.1881,129.28,129.25,0.8509677]
[1725851069087,45.0,129.27,129.25,0.8509677]
[1725851069892,22.03389823,129.29,129.25,0.8509677]
[1725851069893,45.0,129.28,129.25,0.8509677]
[1725851099201,51.1881,129.28,129.25,0.8509677]
[1725851099403,6.1886,129.27,129.25,0.8509677]
[1725851099600,45.0,129.26,129.25,0.8509677]
[1725851101512,45.0,129.26,129.15,16.0703]
[1725851101513,6.1903,129.24,129.15,16.0703]
[1725851101811,51.1906,129.23,129.15,16.0703]
[1725851102216,95.0,129.23,129.15,16.0703]
[1725851102387,15.891,129.22,129.15,16.0703]
[1725851102718,50.0,129.2,129.12,0.8309677]
[1725851103005,71.1924,129.19,129.12,0.8309677]
[1725851105586,6.193,129.18,129.12,0.8309677]
[1725851105787,45.0,129.17,129.12,0.8309677]
[1725851106986,51.1935,129.17,129.12,0.8309677]
[1725851108199,6.1942,129.16,129.12,0.8309677]
[1725851108404,60.2321,129.15,129.12,0.8309677]
[1725851108589,6.1952,129.14,129.12,0.8309677]
[1725851108910,60.2321,129.15,129.12,0.8309677]
[1725851108911,51.1953,129.13,129.12,0.8309677]
[1725851109090,6.0043,129.1,129.01,256.5]
[1725851109428,56.0043,129.1,128.99,9.64174934]
[1725851109596,20.0,129.09,128.99,9.64174934]
[1725851110307,51.1977,129.08,129.0,10.47271704]
[1725851110516,45.0,129.08,129.0,10.47271704]
[1725851111816,45.0,129.08,129.02,9.64174934]
[1725851112019,45.0,129.09,129.02,9.64174934]
[1725851112221,45.0,129.09,129.0,0.8309677]
[1725851112522,15.65856697,129.13,129.02,15.9719]
[1725851112816,20.0,129.12,129.02,22.384]
[1725851113517,15.46716697,129.13,129.03,24.27677188]
[1725851113726,21.4264,129.15,129.03,24.27677188]
[1725851114295,6.1949,129.14,129.03,24.27677188]
[1725851115123,45.0,129.13,129.03,24.27677188]
[1725851115297,51.1953,129.13,129.02,22.384]
[1725851115617,51.1953,129.13,129.03,20.0]
[1725851119615,21.4268,129.15,129.03,20.0]
[1725851119809,26.1948,129.14,129.03,20.0]
[1725851120518,26.1948,129.14,129.04,24.27677188]
[1725851120891,45.0,129.13,129.04,24.27677188]
[1725851121906,51.1954,129.13,129.04,24.27677188]
[1725851122220,51.1954,129.13,129.03,20.0]
[1725851126313,45.0,129.13,129.02,22.384]
[1725851126519,6.1963,129.11,129.02,22.384]
[1725851126822,45.0,129.1,129.02,22.384]
[1725851127021,73.1157,129.1,129.02,15.9719]
[1725851129912,6.1973,129.09,129.02,15.9719]
[1725851130117,45.0,129.08,129.02,15.9719]
[1725851131025,45.0,129.08,129.0,25.10773958]
[1725851131333,51.1977,129.08,129.0,0.8309677]
[1725851131513,45.0,129.08,129.0,0.8309677]
[1725851131716,45.0,129.09,129.0,0.8309677]
[1725851132117,45.0,129.09,129.0,10.5428142]
[1725851132317,51.1973,129.09,129.0,10.5428142]
[1725851134333,6.1977,129.08,129.0,10.5428142]
[1725851134506,45.0,129.07,129.0,0.8309677]
[1725851135743,51.1982,129.07,129.0,0.8309677]
[1725851136239,6.1988,129.06,129.0,0.8309677]
[1725851136431,45.0,129.05,129.0,0.8309677]
[1725851138432,21.919,129.1,129.01,9.7118465]
[1725851138932,28.1158,129.1,129.01,9.7118465]
[1725851139623,15.8054,129.1,129.03,9.7118465]
[1725851140914,45.0,129.09,129.03,9.7118465]
[1725851143237,45.0,129.09,129.01,32.5982465]
[1725851143640,51.1973,129.09,129.01,22.8864]
[1725851145238,6.1977,129.08,129.01,22.8864]
[1725851145537,45.0,129.07,129.01,22.8864]
[1725851147627,51.1983,129.07,129.01,16.3699]
[1725851147907,6.1987,129.06,129.0,0.8309677]
[1725851148157,51.1992,129.05,129.0,0.8309677]
[1725851148323,6.1992,129.05,129.0,0.8309677]
[1725851148513,45.0,129.04,129.0,0.8309677]
[1725851150223,45.0,129.05,129.0,0.8309677]
[1725851151339,51.1992,129.05,129.0,0.8309677]
[1725851156221,45.0,129.05,129.0,0.8309677]
[1725851156649,51.1987,129.06,129.0,0.8309677]
[1725851159948,6.1983,129.07,129.0,0.8309677]
[1725851160248,6.1976,129.09,129.0,0.8309677]
[1725851160460,20.0,129.08,129.0,0.8309677]
[1725851161150,45.0,129.07,129.0,0.8309677]
[1725851161337,54.94675586,129.08,129.0,0.8309677]
[1725851161941,61.14445586,129.08,129.0,10.5428142]
[1725851162249,51.1977,129.08,129.0,10.5428142]
[1725851162849,45.0,129.08,129.0,10.5428142]
[1725851163052,34.12669596,129.11,129.0,10.5428142]
[1725851163053,7.63590979,129.11,129.04,9.7118465]
[1725851163350,19.16777587,129.13,129.04,9.7118465]
[1725851163654,9.94675586,129.14,129.05,15.536]
[1725851164027,9.94675586,129.14,129.06,9.7118465]
[1725851164229,9.94675586,129.14,129.06,6.6655]
[1725851164434,9.94675586,129.14,129.07,24.25889116]
[1725851165453,15.1849465,129.15,129.08,15.694]
[1725851165756,15.1849465,129.15,129.09,24.25889116]
[1725851165933,15.1849465,129.15,129.11,24.25889116]
[1725851166140,15.1849465,129.15,129.1,6.6655]
[1725851167854,45.0,129.14,129.1,6.6655]
[1725851168158,45.0,129.14,129.08,15.694]
[1725851168159,6.1954,129.13,129.08,15.694]
[1725851168452,51.1959,129.12,129.04,22.3595]
[1725851168752,6.1963,129.11,129.04,22.3595]
[1725851168935,45.0,129.1,129.04,22.3595]
[1725851169330,45.0,129.11,129.04,22.3595]
[1725851170529,45.0,129.12,129.04,22.3595]
[1725851170930,51.1958,129.12,129.04,22.3595]
[1725851171948,111.14255586,129.12,129.04,22.3595]
[1725851172457,61.14255586,129.12,129.04,22.3595]
[1725851173032,54.94675586,129.12,129.04,22.3595]
[1725851173249,15.1849465,129.15,129.06,24.25889116]
[1725851173559,15.1849465,129.15,129.09,6.3456]
[1725851173944,15.1849465,129.15,129.1,24.25889116]
[1725851174554,15.1849465,129.15,129.11,15.2254]
[1725851174860,9.94675586,129.19,129.11,15.2254]
[1725851175558,16.13935586,129.19,129.11,15.2254]
[1725851176049,9.94675586,129.18,129.11,15.2254]
[1725851176243,16.13965586,129.18,129.11,15.2254]
[1725851176741,45.0,129.17,129.11,15.2254]
[1725851176936,51.1935,129.17,129.11,15.2254]
[1725851178455,6.1938,129.16,129.11,15.2254]
[1725851178642,45.0,129.15,129.11,15.2254]
[1725851178841,51.1934,129.17,129.11,15.2254]
[1725851179737,45.0,129.17,129.11,15.2254]
[1725851179937,45.0,129.18,129.11,15.2254]
[1725851180435,6.1919,129.21,129.11,15.2254]
[1725851180638,31.13094237,129.22,129.13,6.1698]
[1725851181944,65.0,129.21,129.13,6.1698]
[1725851182368,10.38008919,129.2,129.13,6.1698]
[1725851182656,6.1929,129.18,129.13,6.1698]
[1725851182861,6.1934,129.17,129.13,6.1698]
[1725851183161,51.1934,129.17,129.11,15.2254]
[1725851184158,6.1944,129.15,129.11,15.2254]
[1725851184342,45.0,129.14,129.11,15.2254]
[1725851187054,45.0,129.15,129.11,15.2254]
[1725851188843,6.1948,129.14,129.11,15.2254]
[1725851189049,45.0,129.13,129.07,22.0078]
[1725851192947,51.1953,129.13,129.07,22.0078]
[1725851196164,50.0,129.11,129.04,22.4212]
[1725851196373,6.1977,129.08,129.04,22.4212]
[1725851196569,45.0,129.07,129.04,22.4212]
[1725851196946,51.1982,129.07,129.04,16.3286]
[1725851197150,6.1991,129.05,129.04,16.3286]
[1725851197374,6.1991,129.05,129.01,6.453]
[1725851197375,45.0,129.05,129.01,6.453]
[1725851197575,45.0,129.04,129.01,6.453]
[1725851199568,45.0,129.05,129.01,6.453]
[1725851199746,45.0,129.05,129.0,17.4254677]
[1725851200072,45.0,129.06,129.0,17.4254677]
[1725851201253,6.1997,129.04,129.0,17.4254677]
[1725851201448,45.0,129.03,129.0,17.4254677]
[1725851202171,45.0,129.04,129.0,17.4254677]
[1725851203351,45.0,129.05,129.0,17.4254677]
[1725851208578,6.1996,129.04,129.0,17.4254677]
[1725851208877,45.0,129.03,129.0,17.4254677]
[1725851214979,45.0,129.04,129.0,17.4254677]
[1725851222066,51.2001,129.04,129.0,17.4254677]
[1725851222498,6.2001,129.03,129.0,17.4254677]
[1725851222801,6.201,129.01,129.0,0.8309677]
[1725851222988,76.201,129.01,129.0,0.8309677]
[1725851223190,121.201,129.01,129.0,0.8309677]
[1725851223495,71.201,129.01,129.0,0.8309677]
[1725851224009,51.201,129.01,129.0,0.8309677]
[1725851224285,45.0,129.01,129.0,0.8309677]
[1725851225268,51.201,129.01,129.0,0.8309677]
[1725851225870,71.201,129.01,129.0,0.8309677]
[1725851227574,121.201,129.01,129.0,0.8309677]
[1725851228099,71.201,129.01,129.0,0.8309677]
[1725851228875,51.201,129.01,129.0,0.8309677]
[1725851229173,71.201,129.01,129.0,0.8309677]
[1725851231789,45.0,129.01,129.0,0.8309677]
[1725851232102,6.2,129.04,129.0,0.8309677]
[1725851232697,6.2001,129.03,129.0,0.8309677]
[1725851233500,45.0,129.02,129.0,0.8309677]
[1725851238191,51.2006,129.02,129.0,0.8309677]
[1725851240188,6.201,129.01,129.0,0.8309677]
[1725851240509,51.201,129.01,129.0,0.8309677]
[1725851240889,45.0,129.01,129.0,0.8309677]
[1725851247717,6.1996,129.04,129.0,0.8309677]
[1725851248296,6.2001,129.03,129.0,0.8309677]
[1725851248994,45.0,129.02,129.0,0.8309677]
[1725851249586,51.2007,129.02,129.0,0.8309677]
[1725851250605,45.0,129.02,129.0,0.8309677]
[1725851251911,6.1995,129.05,129.0,0.8309677]
[1725851252118,6.1981,129.07,129.01,9.71985402]
[1725851252306,6.1977,129.08,129.01,9.71985402]
[1725851252892,6.1972,129.1,129.01,9.71985402]
[1725851253117,41.01293392,129.12,129.03,9.71985402]
[1725851253319,9.34225586,129.11,129.04,6.2647]
[1725851253494,15.53885586,129.11,129.04,6.2647]
[1725851253896,16.66321302,129.1,129.04,6.2647]
[1725851254422,16.66311302,129.1,129.04,6.2647]
[1725851254591,6.1967,129.1,129.04,6.2647]
[1725851254788,45.0,129.09,129.04,6.2647]
[1725851256617,54.34225586,129.09,129.04,6.2647]
[1725851256996,54.34225586,129.09,129.02,15.2002]
[1725851257809,6.1982,129.07,129.02,15.2002]
[1725851258006,45.0,129.06,129.02,15.2002]
[1725851258726,35.60608938,129.11,129.03,24.27369979]
[1725851258896,29.40938938,129.11,129.05,39.81809979]
[1725851259326,35.60558938,129.11,129.05,15.5444]
[1725851260431,45.0,129.1,129.05,15.5444]
[1725851266127,29.40938938,129.11,129.05,15.5444]
[1725851266518,35.60568938,129.11,129.05,15.5444]
[1725851266720,15.9088273,129.13,129.05,15.5444]
[1725851267032,9.34225586,129.11,129.05,15.5444]
[1725851267730,45.0,129.1,129.05,15.5444]
[1725851267906,51.1968,129.1,129.05,15.5444]
[1725851271710,45.0,129.1,129.05,15.5444]
[1725851272129,45.0,129.11,129.05,15.5444]
[1725851272327,41.61578527,129.12,129.05,15.5444]
[1725851273023,15.53855586,129.11,129.05,15.5444]
[1725851273243,6.1968,129.1,129.05,15.5444]
[1725851273620,45.0,129.09,129.05,15.5444]
[1725851274024,45.0,129.1,129.05,15.5444]
[1725851276635,45.0,129.11,129.05,15.5444]
[1725851277339,15.41968527,129.12,129.05,39.81809979]
[1725851278109,15.41968527,129.12,129.05,25.24867917]
[1725851278840,45.0,129.11,129.05,25.24867917]
[1725851279541,45.0,129.11,129.07,9.70427917]
[1725851280254,45.0,129.12,129.05,39.802116]
[1725851280417,54.34225586,129.12,129.05,39.802116]
[1725851280814,60.53805586,129.12,129.05,15.5444]
[1725851281630,6.1963,129.11,129.05,15.5444]
[1725851281831,45.0,129.1,129.05,15.5444]
[1725851282347,45.0,129.11,129.05,15.5444]
[1725851283038,51.1962,129.11,129.05,15.5444]
[1725851283333,6.1967,129.1,129.05,15.5444]
[1725851283541,45.0,129.09,129.05,15.5444]
[1725851283842,45.0,129.11,129.05,15.5444]
[1725851284147,29.34225586,129.1,129.05,15.5444]
[1725851284328,6.1977,129.08,129.05,15.5444]
[1725851284539,45.0,129.07,129.05,15.5444]
[1725851284746,45.0,129.07,129.04,6.0623]
[1725851285254,51.1983,129.07,129.02,15.9729]
[1725851287019,45.0,129.07,129.02,15.9729]
[1725851290227,45.0,129.08,129.02,15.9729]
[1725851290422,45.0,129.09,129.02,15.9729]
[1725851290926,51.1972,129.09,129.02,15.9729]
[1725851291143,45.0,129.09,129.02,15.9729]
[1725851293662,45.0,129.09,129.03,24.257716]
[1725851293962,45.0,129.1,129.03,25.80731164]
[1725851294145,2.58293239,129.12,129.03,25.80728626]
[1725851294146,24.19270578,129.12,129.03,25.80728626]
[1725851294343,15.41397339,129.12,129.05,40.091216]
[1725851294663,6.1949,129.14,129.05,41.64046536]
[1725851294953,21.48182751,129.15,129.07,24.257716]
[1725851295135,21.48182751,129.15,129.08,6.2154]
[1725851297247,30.82408337,129.15,129.08,6.2154]
[1725851297558,45.0,129.14,129.08,6.2154]
[1725851297860,60.22425103,129.14,129.08,6.2154]
[1725851299445,60.22425103,129.14,129.09,15.5693]
[1725851299625,15.22425103,129.14,129.09,39.827016]
[1725851299833,15.22425103,129.14,129.1,1.54812267]
[1725851300254,15.22425103,129.14,129.11,9.69602022]
[1725851306164,15.22425103,129.14,129.12,6.4173]
[1725851306333,15.22425103,129.14,129.13,16.6541]
[1725851306531,15.22425103,129.14,129.13,26.35012022]
[1725851307660,6.192,129.2,129.13,26.35012022]
[1725851307864,45.0,129.19,129.13,26.35012022]
[1725851308758,45.0,129.19,129.13,16.6541]
[1725851308950,45.0,129.19,129.14,9.69602022]
[1725851309468,15.09398911,129.22,129.16,9.69602022]
[1725851309763,21.28488911,129.22,129.16,9.69602022]
[1725851310841,45.0,129.21,129.16,9.69602022]
[1725851311256,51.1915,129.21,129.14,9.69602022]
[1725851323560,6.192,129.2,129.14,9.69602022]
[1725851323758,45.0,129.19,129.13,16.6541]
[1725851324064,51.1926,129.19,129.13,16.6541]
[1725851324266,45.0,129.19,129.13,16.6541]
[1725851332084,6.1934,129.17,129.13,16.6541]
[1725851332278,45.0,129.16,129.13,16.6541]
[1725851333879,45.0,129.16,129.12,6.4173]
[1725851341490,45.0,129.16,129.1,15.3371]
[1725851341695,6.1948,129.14,129.1,15.3371]
[1725851341897,45.0,129.13,129.08,6.3037]
[1725851342391,6.1944,129.15,129.08,6.3037]
[1725851342392,45.0,129.14,129.08,6.3037]
[1725851344895,45.0,129.15,129.08,6.3037]
[1725851345490,45.0,129.15,129.09,9.69602022]
[1725851354108,6.195,129.14,129.08,6.3037]
[1725851354284,45.0,129.13,129.08,6.3037]
[1725851356406,45.0,129.14,129.1,15.2778]
[1725851358001,45.0,129.15,129.1,15.2778]
[1725851359179,33.27391781,129.2,129.1,15.2778]
[1725851359380,29.34225586,129.19,129.1,15.2778]
[1725851359681,6.1935,129.17,129.1,15.2778]
[1725851360406,45.0,129.16,129.1,15.2778]
[1725851367203,7.20003339,129.21,129.12,6.1285]
[1725851367204,22.06236549,129.18,129.12,6.1285]
[1725851367413,22.06236549,129.18,129.13,26.45764117]
[1725851368688,22.06236549,129.18,129.13,24.90922022]
[1725851368882,45.0,129.17,129.13,24.90922022]
[1725851369082,45.0,129.17,129.13,15.2132]
[1725851369294,45.0,129.17,129.13,24.90922022]
[1725851376922,44.76,129.17,129.13,24.90922022]
[1725851378098,44.76,129.17,129.13,15.2132]
[1725851397125,22.06236549,129.18,129.13,24.90922022]
[1725851398418,22.06236549,129.18,129.15,9.69602022]
[1725851398733,22.06236549,129.18,129.15,11.2442878]
[1725851398921,22.06236549,129.18,129.15,9.69602022]
[1725851404635,22.06236549,129.18,129.16,1.54819461]
[1725851404813,22.06236549,129.18,129.15,9.69602022]
[1725851406821,23.25264333,129.24,129.17,25.99452022]
[1725851408536,45.0,129.23,129.17,25.99452022]
[1725851408735,45.0,129.23,129.17,16.2985]
[1725851414019,45.0,129.23,129.17,25.99452022]
[1725851414912,23.25264333,129.24,129.19,9.69602022]
[1725851416426,45.0,129.23,129.19,9.69602022]
[1725851421541,22.62585716,129.22,129.19,9.69602022]
[1725851421746,22.62585716,129.22,129.21,9.69602022]
[1725851421941,22.62585716,129.22,129.21,25.26132022]
[1725851422522,23.29479096,129.27,129.21,25.26132022]
[1725851423436,23.29479096,129.27,129.18,16.6085]
[1725851423746,9.34225586,129.26,129.18,16.6085]
[1725851424042,23.45284771,129.25,129.18,16.6085]
[1725851424344,45.0,129.24,129.19,9.69602022]
[1725851424553,22.05749576,129.23,129.19,9.69602022]
[1725851425050,22.05749576,129.23,129.21,9.69602022]
[1725851425255,22.05749576,129.23,129.21,15.93672022]
[1725851427253,6.1877,129.29,129.21,15.93672022]
[1725851427438,45.0,129.28,129.21,15.93672022]
[1725851428052,6.1877,129.29,129.21,15.93672022]
[1725851428453,21.42901004,129.3,129.22,15.8169]
[1725851428661,21.42901004,129.3,129.23,9.69602022]
[1725851429554,21.42901004,129.3,129.27,25.68472022]
[1725851429727,15.3197,129.36,129.27,25.68472022]
[1725851429930,12.318,129.37,129.29,9.69602022]
[1725851430153,6.134,129.37,129.29,9.69602022]
[1725851430652,16.6266,129.39,129.29,9.69602022]
[1725851431242,6.1834,129.38,129.29,9.69602022]
[1725851431637,6.1834,129.38,129.31,9.69602022]
[1725851431829,16.6266,129.39,129.31,9.69602022]
[1725851432028,20.0,129.38,129.31,9.69602022]
[1725851433460,45.0,129.37,129.31,9.69602022]
[1725851433638,45.0,129.37,129.29,9.69602022]
[1725851434733,51.1839,129.37,129.29,9.69602022]
[1725851435039,51.1839,129.37,129.27,15.9887]
[1725851435239,51.1839,129.37,129.29,9.69602022]
[1725851435946,24.72570543,129.38,129.31,9.69602022]
[1725851436342,6.1835,129.38,129.31,9.69602022]
[1725851437273,45.0,129.37,129.31,9.69602022]
[1725851441162,51.1838,129.37,129.31,9.69602022]
[1725851441469,45.0,129.37,129.27,15.9887]
[1725851441763,34.57717824,129.4,129.28,29.69602022]
[1725851441764,6.1843,129.36,129.28,29.69602022]
[1725851441941,45.0,129.35,129.28,29.69602022]
[1725851442442,51.1847,129.35,129.28,9.69602022]
[1725851442756,51.1851,129.35,129.28,9.69602022]
[1725851444656,45.0,129.35,129.28,9.69602022]
[1725851449745,45.0,129.36,129.28,9.69602022]
[1725851450664,51.1843,129.36,129.28,9.69602022]
[1725851452252,45.0,129.36,129.28,9.69602022]
[1725851452447,45.0,129.37,129.28,9.69602022]
[1725851453065,6.1849,129.35,129.28,9.69602022]
[1725851453270,45.0,129.34,129.28,9.69602022]
[1725851455046,15.71453496,129.38,129.32,9.69602022]
[1725851455250,15.71453496,129.38,129.34,9.69602022]
[1725851455454,6.1819,129.41,129.34,9.69602022]
[1725851455651,6.1815,129.42,129.36,9.69602022]
[1725851457894,51.1819,129.41,129.34,9.69602022]
[1725851459353,6.1824,129.4,129.34,9.69602022]
[1725851459666,45.0,129.39,129.34,9.69602022]
[1725851460876,45.0,129.39,129.33,22.914]
[1725851461568,51.1829,129.39,129.33,22.914]
[1725851465148,6.1834,129.38,129.33,22.914]
[1725851465356,51.1838,129.37,129.33,16.3041]
[1725851465645,6.1843,129.36,129.33,16.3041]
[1725851465850,45.0,129.35,129.33,16.3041]
[1725851468474,9.34117583,129.41,129.33,16.3041]
[1725851468659,20.0,129.4,129.33,16.3041]
[1725851469275,6.1829,129.39,129.33,16.3041]
[1725851470487,6.1819,129.41,129.35,6.3468]
[1725851470776,15.52365586,129.43,129.35,6.3468]
[1725851471763,20.0,129.42,129.35,6.3468]
[1725851471971,45.0,129.41,129.35,6.3468]
[1725851472559,9.34225586,129.43,129.36,9.69602022]
[1725851472865,0.8309677,129.44,129.37,16.3793]
[1725851473265,0.8309677,129.44,129.38,9.69602022]
[1725851474283,0.8309677,129.44,129.39,6.6103]
[1725851477064,16.24845728,129.44,129.39,6.6103]
[1725851477274,45.0,129.43,129.39,6.6103]
[1725851479965,51.1809,129.43,129.37,16.3793]
[1725851481588,45.0,129.43,129.37,16.3793]
[1725851485506,0.8309677,129.44,129.37,16.3793]
[1725851486682,20.8309677,129.44,129.37,16.3793]
[1725851486871,45.0,129.43,129.37,16.3793]
[1725851488769,45.8309677,129.44,129.37,16.3793]
[1725851488969,45.0,129.43,129.37,16.3793]
[1725851489168,0.8309677,129.44,129.37,16.3793]
[1725851495298,45.8309677,129.44,129.37,16.3793]
[1725851496274,0.8309677,129.44,129.37,16.3793]
[1725851497287,7.0114677,129.44,129.37,16.3793]
[1725851497485,45.0,129.43,129.37,16.3793]
[1725851502002,0.8309677,129.44,129.39,6.6177]
[1725851502204,0.8309677,129.44,129.4,1.54534881]
[1725851502902,0.8309677,129.44,129.41,15.018]
[1725851503600,0.8309677,129.44,129.42,9.65776582]
[1725851504703,0.8309677,129.44,129.41,15.018]
[1725851505905,0.8309677,129.44,129.39,6.6177]
[1725851506088,7.0114677,129.44,129.39,6.6177]